Cogmind - Beta 11.1 @@@ ROGUE MODE // 2022.11.08 @ 22:41:06 Player: darki Result: Destroyed by G-47 Trooper with Particle Gun Performance ------------- Evolutions (2) 1000 Regions Visited (7) 1400 Robots Destroyed (31) 155 Value Destroyed (783) 783 Prototype IDs (23) 460 Alien Tech Used (0) 0 Bonus (1000) 1000 TOTAL SCORE: 4798 Bonus ------- Entered Garrisons 200 Used RIF Installer 500 Aligned with FarCom 300 Cogmind --------- Core Integrity 0/550 Matter 169/300 Energy 55/125 System Corruption 0% Temperature Cool (9) Movement Walking (90) Location -8/Materials Parts ------- > --- POWER (1) -------- Light Ion Engine > --- PROPULSION (2) --- VSS Leg VSS Leg > --- UTILITY (6) ------ Machine Analyzer > --- WEAPON (2) ------- Shock Bomb Launcher Shock Bomb Launcher > --- INVENTORY (5) ---- VSS Leg Assault Rifle Peak State ------------ > --- POWER ------------ Light Nuclear Core > --- PROPULSION ------- Aluminum Leg Aluminum Leg > --- UTILITY ---------- Small Storage Unit Targeting Computer > --- WEAPON ----------- AWS/Thermal > --- INVENTORY -------- Light Ion Engine Light Fission Core Flight Unit Flight Unit Light Assault Rifle Light Cannon [Rating: 24] Favorites ----------- Power Light Nuclear Core Engine Light Ion Engine Power Core Light Nuclear Core Propulsion Aluminum Leg Leg Aluminum Leg Flight Unit Flight Unit Utility Targeting Computer Device Improved Heat Sink Storage Small Storage Unit Processor Targeting Computer Protection Hardened Light Armor Plating Weapon Light Cannon Energy Gun AWS/Thermal Ballistic Gun Assault Rifle Ballistic Cannon Light Cannon Launcher Shock Bomb Launcher Build | -11 -10 -10 -10 -9 -8 -8 -8 ------- Run | Scr Mat Min Exi Min Mat Gar Mat Slots Evolved 4 | . . . . . 4 . . Power . | . . . . . . . . Propulsion . | . . . . . . . . Utility 4 | . . . . . 4 . . Weapon . | . . . . . . . . Parts Attached 30 | . 5 3 . 1 . 5 16 Power 3 | . . 1 . . . . 2 Engine 2 | . . . . . . . 2 Core 1 | . . 1 . . . . . Reactor . | . . . . . . . . Propulsion 10 | . 2 2 . . . 3 3 Treads . | . . . . . . . . Leg 7 | . 2 2 . . . . 3 Wheel . | . . . . . . . . Hover . | . . . . . . . . Flight 3 | . . . . . . 3 . Utility 5 | . 1 . . . . . 4 Device 1 | . . . . . . . 1 Storage 1 | . . . . . . . 1 Processor 2 | . 1 . . . . . 1 Hackware . | . . . . . . . . Protection 1 | . . . . . . . 1 Artifact . | . . . . . . . . Weapon 12 | . 2 . . 1 . 2 7 Energy Gun 2 | . . . . 1 . 1 . Energy Cannon . | . . . . . . . . Ballistic Gun 1 | . . . . . . . 1 Ballistic Cannon 5 | . 2 . . . . 1 2 Launcher 4 | . . . . . . . 4 Special Weapon . | . . . . . . . . Impact Weapon . | . . . . . . . . Slashing Weapon . | . . . . . . . . Piercing Weapon . | . . . . . . . . Special Melee Weapon . | . . . . . . . . Unidentified Prototypes . | . . . . . . . . Parts Lost 10 | . . 1 . . . 7 2 Power 2 | . . 1 . . . 1 . Propulsion 5 | . . . . . . 5 . Utility 2 | . . . . . . . 2 Weapon 1 | . . . . . . 1 . Highest Loss Streak 7 | . . 1 . . . 7 1 To Critical Strikes . | . . . . . . . . Average Slot Usage (%) 72 | . 99 98 100 91 54 49 31 Engine 2 | . 14 . . . . . 2 Core 7 | . . 12 14 14 9 7 . Leg 19 | . 28 28 28 28 18 15 2 Device 1 | . . . . . . . 7 Storage 10 | . 14 14 14 14 9 8 1 Processor 11 | . 13 14 14 14 9 9 6 Energy Gun 2 | . . . . 7 9 8 . Ballistic Cannon 14 | . 27 28 28 12 . . 3 Naked Turns . | . . . . . . . . Heaviest Build 28 | 10 14 16 16 18 18 18 28 Greatest Support 24 | 20 20 20 20 20 20 20 24 Greatest Overweight (x) 9 | . . . . . . 4 9 Average Overweight (x) . | . . . . . . . . Largest Inventory Capacity 8 | . 8 8 8 8 8 8 8 Average Capacity 7 | . 8 8 8 8 8 7 5 Most Carried 8 | . 7 8 8 8 7 7 7 Average Carried 6 | . 6 7 7 7 7 5 4 Final Capacity 8 | 8 8 8 8 8 8 5 5 Final Carried 8 | 6 7 8 7 7 7 5 2 Class Distribution -------------------- 100% | Mutant Dominant Class ---------------- Mutant | -10/Materials Mutant | -10/Mines Mutant | -10/Exiles Mutant | -9/Mines Mutant | -8/Materials Mutant | -8/Garrison Mutant | -8/Materials Resources | -11 -10 -10 -10 -9 -8 -8 -8 ----------- Run | Scr Mat Min Exi Min Mat Gar Mat Matter Collected 807 | 200 103 75 . 275 . 30 124 Remotely . | . . . . . . . . Salvage Created 658 | . 95 96 . 69 . 145 253 Parts 51 | . 6 11 . 4 . 18 12 Haulers Intercepted 1 | . . . . . . . 1 Recyclers Shooed 2 | . 1 1 . . . . . Parts Field Recycled . | . . . . . . . . Retrieved Matter . | . . . . . . . . Parts Self-Destructed . | . . . . . . . . Prevented . | . . . . . . . . Kills | -11 -10 -10 -10 -9 -8 -8 -8 ------- Run | Scr Mat Min Exi Min Mat Gar Mat Combat Hostiles Destroyed 26 | . 3 7 . 4 . 10 2 Guns 14 | . . . . 4 . 10 . Cannons 10 | . 3 7 . . . . . AOE 2 | . . . . . . . 2 Classes Destroyed 8 | . 2 1 . . . . 5 Tunneler 1 | . . . . . . . 1 Hauler 1 | . . . . . . . 1 Recycler 1 | . . . . . . . 1 Watcher 2 | . 2 . . . . . . Swarmer 17 | . . 3 . 4 . 10 . Grunt 7 | . 3 4 . . . . . Duelist 1 | . . . . . . . 1 Sentry 1 | . . . . . . . 1 Best Kill Streak 10 | . 4 3 . 4 . 10 3 Combat Bots Only 10 | . 3 3 . 4 . 10 1 Max Kills in Single Turn 2 | . 1 2 . 1 . 1 1 Gunslinging . | . . . . . . . . Exploded 1 | . . . . . . . 1 Melee . | . . . . . . . . Uniques/NPCs Destroyed . | . . . . . . . . Combat | -11 -10 -10 -10 -9 -8 -8 -8 -------- Run | Scr Mat Min Exi Min Mat Gar Mat Damage Taken 2047 | . 182 357 . 83 47 803 575 Core 648 | . . 64 . 32 31 319 202 Absorbed by Shields 46 | . . . . . . 46 . Core Remaining (%) 80 | 100 . . . 61 . . . Volleys Fired 55 | . 21 22 . . . 1 11 Largest 2 | . 2 2 . . . 1 2 Hottest 72 | . 70 70 . . . 35 72 Shots Fired 148 | . 42 44 . 10 1 34 17 Gun 44 | . . . . 10 1 33 . Cannon 96 | . 42 44 . . . 1 9 Launcher 8 | . . . . . . . 8 Special . | . . . . . . . . Kinetic 96 | . 42 44 . . . 1 9 Thermal 44 | . . . . 10 1 33 . Explosive . | . . . . . . . . Electromagnetic 8 | . . . . . . . 8 Robot Hit Streak 15 | . 7 4 . 8 9 15 14 Robot Miss Streak 6 | . 6 5 . 1 . 2 1 Penetration Max . | . . . . . . . . Secondary Targets . | . . . . . . . . Autonomous 44 | . . . . 10 1 33 . Shots Hit Robots 85 | . 22 20 . 9 1 27 6 Core Hits 37 | . 7 8 . 4 . 12 6 Critical Kills . | . . . . . . . . Critical Parts Destroyed . | . . . . . . . . Critical Strikes 2 | . 1 1 . . . . . Blast 2 | . 1 1 . . . . . Melee Attacks . | . . . . . . . . Impact . | . . . . . . . . Slashing . | . . . . . . . . Piercing . | . . . . . . . . Sneak Attacks . | . . . . . . . . Combat Hostiles . | . . . . . . . . Follow-up Attacks . | . . . . . . . . Damage Inflicted 2058 | . 357 388 . 255 31 803 224 Guns 1089 | . . . . 255 31 803 . Cannons 779 | . 357 388 . . . . 34 Explosions 190 | . . . . . . . 190 Melee . | . . . . . . . . Ramming . | . . . . . . . . Kinetic 779 | . 357 388 . . . . 34 Thermal 1089 | . . . . 255 31 803 . Explosive . | . . . . . . . . Electromagnetic 190 | . . . . . . . 190 Impact . | . . . . . . . . Slashing . | . . . . . . . . Piercing . | . . . . . . . . Highest Corruption 1 | . . 1 1 1 . . . Average Corruption 1 | . . 1 1 1 . . . Corruption Purged . | . . . . . . . . Corruption Blocked . | . . . . . . . . Effects 6 | . . 1 4 1 . . . Matter Fused 3 | . . 1 2 . . . . Energy Discharges 2 | . . . 1 1 . . . Data Loss (major) 1 | . . . 1 . . . . Overload Shots . | . . . . . . . . Overflow Damage 7 | . 7 . . . . . . Projectiles 7 | . 7 . . . . . . Explosions . | . . . . . . . . Melee . | . . . . . . . . Knockbacks 20 | . 11 9 . . . . . Impact . | . . . . . . . . Kinetic 16 | . 9 7 . . . . . Secondary 4 | . 2 2 . . . . . Self-Inflicted Damage 41 | . . . . . . . 41 Shots 2 | . . . . . . . 2 Rammed . | . . . . . . . . Targets Rammed . | . . . . . . . . Kicked . | . . . . . . . . Crushed . | . . . . . . . . Highest Temperature 159 | . 159 156 . . . 5 14 Average Temperature 48 | . 44 55 . . . 5 7 Received Heat Transfer 851 | . 123 144 . . 27 377 180 Siege Activations . | . . . . . . . . Robots Corrupted . | . . . . . . . . Combat Hostiles . | . . . . . . . . Parts Fried 1 | . . . . . . . 1 Impact Corruptions . | . . . . . . . . Robots Melted . | . . . . . . . . Combat Hostiles . | . . . . . . . . Parts Melted 3 | . . . . 1 . 2 . Heat Transferred 1406 | . . . . 333 37 1036 . Parts Sabotaged . | . . . . . . . . Parts Stolen . | . . . . . . . . Parts Stripped . | . . . . . . . . Power Chain Reactions . | . . . . . . . . Missiles Intercepted . | . . . . . . . . Alert | -11 -10 -10 -10 -9 -8 -8 -8 ------- Run | Scr Mat Min Exi Min Mat Gar Mat Peak Influence 342 | . 134 227 . 93 35 342 238 Initial 166 | . . 52 . . 35 22 166 Average 105 | . 34 121 . 31 35 98 184 Maximum Alert Level 1 | . . 1 . . . 1 1 Low Security (%) 86 | . 100 89 . 100 100 84 68 Level 1 13 | . . 10 . . . 15 31 Level 2 . | . . . . . . . . Level 3 . | . . . . . . . . Level 4 . | . . . . . . . . Level 5 . | . . . . . . . . High Security . | . . . . . . . . Max Security . | . . . . . . . . Squads Dispatched 3 | . . 1 . . . . 2 Investigation 1 | . . 1 . . . . . Extermination . | . . . . . . . . Reinforcement 2 | . . . . . . . 2 Assault . | . . . . . . . . Garrison . | . . . . . . . . Intercept . | . . . . . . . . Searches Triggered . | . . . . . . . . Construction Impeded . | . . . . . . . . Haulers Reinforced . | . . . . . . . . Active Scanning Responses . | . . . . . . . . Cargo Convoy Interrupts . | . . . . . . . . Stealth | -11 -10 -10 -10 -9 -8 -8 -8 --------- Run | Scr Mat Min Exi Min Mat Gar Mat Distress Signals 2 | . 1 . . . . . 1 Communications Jammed . | . . . . . . . . Distress Signals . | . . . . . . . . Times Spotted 49 | . 6 7 . 4 3 20 9 Peak Tracking Total 11 | . 2 3 . 4 3 11 8 Tactical Retreats . | . . . . . . . . Traps | -11 -10 -10 -10 -9 -8 -8 -8 ------- Run | Scr Mat Min Exi Min Mat Gar Mat Traps Triggered 4 | . 1 . . . . 2 1 Indirectly 1 | . . . . . . . 1 Trap Hack Attempts . | . . . . . . . . Triggered . | . . . . . . . . Disarmed . | . . . . . . . . Reprogrammed . | . . . . . . . . Reused . | . . . . . . . . Traps Extracted . | . . . . . . . . Installed . | . . . . . . . . Triggered . | . . . . . . . . Exploded 1 | . . . . . . . 1 Machines | -11 -10 -10 -10 -9 -8 -8 -8 ---------- Run | Scr Mat Min Exi Min Mat Gar Mat Machines Disabled 2 | . . 1 . . . 1 . Max in Single Turn 1 | . . 1 . . . 1 . Garrison Relay 1 | . . . . . . 1 . Machines Sabotaged . | . . . . . . . . Garrisons Compromised . | . . . . . . . . Overloaded Fab Kills . | . . . . . . . . Hacking | -11 -10 -10 -10 -9 -8 -8 -8 --------- Run | Scr Mat Min Exi Min Mat Gar Mat Machines Accessed 4 | . 1 1 1 . 1 . . Terminals 2 | . 1 1 . . . . . Fabricators . | . . . . . . . . Repair Stations . | . . . . . . . . Recycling Units . | . . . . . . . . Scanalyzers . | . . . . . . . . Garrison Access 1 | . . . . . 1 . . Total Hacks 7 | . 2 3 1 . 1 . . Successful 4 | . 2 . 1 . 1 . . Failed 3 | . . 3 . . . . . Catastrophic . | . . . . . . . . Database Lockouts . | . . . . . . . . Manual 6 | . 2 3 1 . . . . Terminals 5 | . 2 3 . . . . . Fabricators . | . . . . . . . . Repair Stations . | . . . . . . . . Recycling Units . | . . . . . . . . Scanalyzers . | . . . . . . . . Garrison Access 1 | . . . . . 1 . . Terminal Hacks 3 | . 2 . 1 . . . . Part Schematic 2 | . 2 . . . . . . EX-Prototype ID Bank 1 | . . . 1 . . . . Fabricator Hacks . | . . . . . . . . Repair Station Hacks . | . . . . . . . . Recycling Unit Hacks . | . . . . . . . . Scanalyzer . | . . . . . . . . Garrison Access Hacks 1 | . . . . . 1 . . Unlock Access 1 | . . . . . 1 . . Unauthorized Hacks . | . . . . . . . . Terminals . | . . . . . . . . Fabricators . | . . . . . . . . Repair Stations . | . . . . . . . . Recycling Units . | . . . . . . . . Scanalyzers . | . . . . . . . . Garrison Access . | . . . . . . . . Data Cores Recovered . | . . . . . . . . Used . | . . . . . . . . Hacking Detections 2 | . 1 1 . . . . . Full Trace Events 1 | . . 1 . . . . . Feedback Events 1 | . . 1 . . . . . Corruption 1 | . . 1 . . . . . Feedback Blocked . | . . . . . . . . Robot Schematics Acquired . | . . . . . . . . Robots Built . | . . . . . . . . Authchips . | . . . . . . . . Time . | . . . . . . . . Total Robot Build Rating . | . . . . . . . . Part Schematics Acquired 2 | . 2 . . . . . . Parts Built . | . . . . . . . . Authchips . | . . . . . . . . Time . | . . . . . . . . Total Part Build Rating . | . . . . . . . . Parts Repaired . | . . . . . . . . Time . | . . . . . . . . Parts Recycled . | . . . . . . . . Recycled Matter . | . . . . . . . . Retrieved Matter . | . . . . . . . . Retrieved Components . | . . . . . . . . Parts Scanalyzed . | . . . . . . . . Part Schematics Acquired . | . . . . . . . . Parts Damaged . | . . . . . . . . Bothacking | -11 -10 -10 -10 -9 -8 -8 -8 ------------ Run | Scr Mat Min Exi Min Mat Gar Mat Used RIF Installer 1 | . . . . . . 1 . Robots Hacked . | . . . . . . . . Non-combat . | . . . . . . . . Combat . | . . . . . . . . Robot Hacks Applied . | . . . . . . . . Relay Couplers Released 4 | . . . . . . 4 . Machine Destruction 4 | . . . . . . 4 . Fabnet Peak Effective % . | . . . . . . . . Robots Rewired . | . . . . . . . . Allies Hacked . | . . . . . . . . Hacks Repelled . | . . . . . . . . Allies | -11 -10 -10 -10 -9 -8 -8 -8 -------- Run | Scr Mat Min Exi Min Mat Gar Mat Total Allies . | . . . . . . . . Largest Group . | . . . . . . . . Highest-Rated Group . | . . . . . . . . Highest-Rated Ally . | . . . . . . . . Total Orders . | . . . . . . . . Ally Attacks . | . . . . . . . . Total Damage . | . . . . . . . . Kills . | . . . . . . . . Allies Corrupted . | . . . . . . . . Allies Melted . | . . . . . . . . Intel | -11 -10 -10 -10 -9 -8 -8 -8 ------- Run | Scr Mat Min Exi Min Mat Gar Mat Robot Analysis Total . | . . . . . . . . Derelict Logs Recovered 1 | . . 1 . . . . . Drone Launches . | . . . . . . . . Drone Recoveries . | . . . . . . . . Exploration | -11 -10 -10 -10 -9 -8 -8 -8 ------------- Run | Scr Mat Min Exi Min Mat Gar Mat Turns Passed 1842 | . 293 332 271 89 14 507 336 Spaces Moved 1037 | 1 160 209 223 63 11 172 198 Core 205 | . . . . . . 42 163 Treads . | . . . . . . . . Legs 813 | 1 160 209 223 63 11 111 35 Wheels . | . . . . . . . . Hover . | . . . . . . . . Flight 19 | . . . . . . 19 . Fastest Speed 37 | 120 120 120 120 120 120 37 50 Average Speed 108 | 120 120 120 120 120 120 104 75 Slowest Speed 500 | 120 120 120 120 120 120 280 500 Overloaded Moves . | . . . . . . . . Propulsion Burnouts . | . . . . . . . . Robots Hopped . | . . . . . . . . Cave-ins Triggered . | . . . . . . . . Exploration Rate (%) 27 | 2 28 46 61 17 2 41 22 Regions Visited 7 Branch Regions 3 Pre-discovered Areas 1 | . . 1 . . . . . Known Exits Taken 1 | . . . . . 1 . . Unknown Exits Taken 5 | 1 1 1 1 1 . . . Scrap Searched . | . . . . . . . . Spaces Dug . | . . . . . . . . Terrain Destroyed 1 | . . . . 1 . . . Melee . | . . . . . . . . Projectile 1 | . . . . 1 . . . AOE . | . . . . . . . . Terrain Rammed . | . . . . . . . . Walls Destroyed . | . . . . . . . . Machines Disabled . | . . . . . . . . Actions | -11 -10 -10 -10 -9 -8 -8 -8 --------- Run | Scr Mat Min Exi Min Mat Gar Mat Total 1643 | . 217 246 228 77 11 497 367 Wait 462 | . 30 8 . 11 . 284 129 Move 1031 | . 159 208 222 62 11 171 198 Hop . | . . . . . . . . Pick Up 8 | . . 2 2 1 . . 3 Fast Attach 20 | . 4 1 . . . 6 9 Attach 9 | . . . . 1 . 3 5 Detach 8 | . . . . 1 . 3 4 Swap 5 | . 1 2 . . . . 2 Drop 18 | . 2 3 4 1 . 2 6 Fire 55 | . 21 22 . . . 1 11 Melee . | . . . . . . . . Ram . | . . . . . . . . Kick . | . . . . . . . . Crush . | . . . . . . . . Escape Stasis 27 | . . . . . . 27 . Rewire . | . . . . . . . . Trap . | . . . . . . . . Miscellaneous . | . . . . . . . . Route ------- -11/Scrapyard -10/Materials -10/Mines -10/Exiles -9/Mines -8/Materials (discovered 2 exits: Fac / Gar) -8/Garrison -8/Materials History --------- Turn | Location | Event 1 | -11/Scrapyard | Discovered new exit (range 0) 1 | -11/Scrapyard | Entered Materials 278 | -10/Materials | Discovered new exit (range 12) 294 | -10/Materials | Entered Mines 314 | -10/Mines | Build established: Mutant 343 | -10/Mines | Met a Derelict bent on vengeance 379 | -10/Mines | Learned location of 1 exit from Materials 522 | -10/Mines | Learned location of Storage (-7) 612 | -10/Mines | Deemed a non-threat by the Exiles lab entrance 612 | -10/Mines | Discovered new exit (range 5) 626 | -10/Mines | Entered Exiles 658 | -10/Exiles | Met 8R-AWN 678 | -10/Exiles | Met EX-HEX 712 | -10/Exiles | Met EX-BIN 727 | -10/Exiles | Aligned with FarCom system 728 | -10/Exiles | Given EX-Vault access code 756 | -10/Exiles | Opened EX-Vault 766 | -10/Exiles | Found AWS/Thermal 792 | -10/Exiles | Warned to stay clear of 0b10 Research branches 828 | -10/Exiles | Met EX-DEC 886 | -10/Exiles | Discovered new exit (range 10) 897 | -10/Exiles | Left Exiles lab with AWS/Thermal 897 | -10/Exiles | Entered Mines 969 | -9/Mines | Discovered new exit (range 11) 986 | -9/Mines | Entered Materials 986 | -8/Materials | Evolved 4 slots: Utility x4 987 | -8/Materials | Identified exit to Factory 1000 | -8/Materials | Identified exit to Garrison 1000 | -8/Materials | Entered Garrison 1038 | -8/Garrison | Triggered checkpoint 1046 | -8/Garrison | Garrison Relay disabled 1424 | -8/Garrison | Triggered checkpoint 1463 | -8/Garrison | Destroyed 10 combat bots 1489 | -8/Garrison | Core integrity fell below 50% 1496 | -8/Garrison | Discovered new exit (range 14) 1505 | -8/Garrison | Installed Relay Interface Framework 1507 | -8/Garrison | Entered Materials 1513 | -8/Materials | Lost 7 parts (1p5n1w) 1795 | -8/Materials | Core integrity fell below 20% 1843 | -8/Materials | Destroyed by G-47 Trooper with Particle Gun Last Messages --------------- 01760_ U-05 Engineer lays Concrete. 01761_ Acquired Shock Bomb Launcher. 01762_ U-05 Engineer repairs door. 01775_ K-01 Serf cleans the Neutrino Reactor. 01780_ ALERT: Hostiles spotted, dispatching reinforcements to Terminal M003. 01791_ Acquired VSS Leg. 01791_ Imp. Heat Sink destroyed. 01793_ Acquired VSS Leg. 01798_ Critical hit (Burn: +37). 01801_ O-16 Technician destroyed. 01801_ S-10 Pest destroyed. 01801_ Dropped Rigged Lgt. Fission Core. 01801_ U-05 Engineer lays Concrete. 01804_ Hadron Collector disabled. 01804_ Acquired Machine Analyzer. 01805_ U-05 Engineer lays Concrete. 01818_ U-05 Engineer builds a Wall. 01838_ Door malfunctions. 01838_ L-31 Rogue destroyed. Map ----- +----------------------------------------------------+ | ?????????????# #?# """ " | | ?????????????# #??? | | ?????????????# #???? | | ?????????????###########???####? | | ???????????????"""""???????????? | | ???????????????""T""???????????? | | ????????????????????????????#### | | ????????????????????????????# | | ???????????????????########## | | ?????????????????? | | ???????????? ???? | | ???????????? ############### | | ?"""???????# # ## | | ?"""???????# # """" """" #" | | ?"""???????# # """" """" "" [ | | ?"""???????# # """" """ " [ | | ???????????+ # # [ | | ?"""???????# #######+##""" #[ | | ?"""??#+##?# %%! | | ?"""??+ #?# | | ?"""??# #?# | | ??????# #?# "" """ = | | ??????# #?# "T """ !! | | ??????# ### "" """ | | ??"""?# * g g | | ??"""?#@% | | ??""" / !############+## | | ??""" # #?????????????# | | ? """ # #??????????"""# | | ? ?# #??????????"""# | | ####??# #??????????"""?? | | ??????+ +??????????????? ##?#+ | | ??????# #?????????????????????? | | ??????# #?????????????????????? | | ??"""?####?????????????????????? | | ??"""??????????????????????????? | | ??"""??????????????????????????? | | ???????????????????????????????? | | ???????????????????????????????? | | | | | | | | | | | | | | | | | | | | | | | +----------------------------------------------------+ Best States ------------- Heat Dissipation 45 Energy Generation 14 Energy Capacity 250 Matter Stores 300 Matter Capacity 300 Sight Range 16 Terrain Scan Density 10 Armor Coverage 150 Evasion (%) 62 Targeting Accuracy 5 Item Schematics ----------------- Structural Scanner | -10/Materials | Hacked Sensor Array | -10/Materials | Hacked Robot Schematics ------------------ None Fabricated ------------ Nothing Alien Tech Used ----------------- None Achievements -------------- None Challenges ------------ None Game ------ Seed DeliveryFlakDrive Manual? 0 Play Time 00:15:46 Cumulative 118.1 hours Start 2022.11.07 @ 23:45:26 End 2022.11.08 @ 22:41:06 Sessions 3 Manual Loads 0 Difficulty Rogue Special Mode None Game No. 128 Rogue 128 Adventurer 0 Explorer 0 Win Type - Total 0 Types 0/0/0/0/0/0/0/0/0 Lore% 53 Gallery% 67 Achievement% 51 Wizard Run 0 Options --------- ASCII 0 Keyboard 0 Movement Mouse Keybinds 0 Fullscreen 1 Font 18/SmallcapsGlow Map View 76x50 Tactical HUD 1 Map Filters NONE Filters NONE Steam 1 RUN: 42e859b4-94f6-498a-a5f4-bef20cc35665